[Event "CIS Master Groups 2024"]
[Site "Vasto"]
[Date "2024.04.11"]
[Round "5.5"]
[White "Favaloro, Andrea"]
[Black "Livaic, Leon"]
[Result "0-1"]
[ECO "D02"]
[WhiteElo "2412"]
[BlackElo "2549"]
[Annotator "TA"]
[PlyCount "168"]
[EventDate "2024.04.07"]
[EventType "team-tourn"]
[EventCountry "ITA"]
[SourceTitle "playchess.com"]
[Source "ChessBase"]
[SourceQuality "1"]
[TimeControl "40/5400+30:900+30"]

{[%evp 9,168,11,21,21,25,17,18,18,28,22,29,5,12,7,8,-10,-12,-13,-12,-8,0,-21,-23,-17,-25,-49,-46,-49,-47,-57,-53,-52,-52,-46,-45,-38,-44,-56,-46,-57,-48,-68,-55,-61,-52,-60,-54,-62,-59,-60,-62,-62,-58,-69,-69,-70,-61,-72,-65,-65,-67,-68,-69,-70,-68,-68,-48,-61,-61,-78,-78,-93,-93,-93,-94,-100,-85,-92,-97,-98,-92,-92,-92,-109,-117,-117,-95,-116,-41,-33,-41,-32,-43,-36,-9,-9,0,-78,-77,-77,-77,-179,-77,-117,-105,-126,-111,-194,-193,-190,-188,-191,-173,-210,-208,-168,-77,-281,-266,-466,-231,-372,-332,-267,-90,-337,-293,-1072,-1072,-1153,-1120,-982,-420,-1085,-1067,-1004,-996,-1357,-1319,-1318,-1454,-1384,-1385,-5935,-5933,-29978,-29979,-29978,-29980,-29980,-29978,-29978,-29979,-29978,-29978,-29978,-29979,-29978,-29978,-29975,-12684]} 1. Nf3 {[%emt 0:03:32][%cal Bg1f3,Bf3e1,Be1d3][%mdl 32]} d5 {[%emt 0:00:16]} 2. g3 {[%emt 0:00:24]} Nc6 {[%emt 0:00:29]} 3. d4 {[%emt 0:00:24]} Bf5 {[%emt 0:00:10]} 4. Bg2 {[%emt 0:00:10]} e6 {[%emt 0:00:19]} 5. O-O {[%emt 0:00:21]} Nb4 {[%emt 0:00:50]} 6. Ne1 {[%emt 0:00:11][%cal Oc2c4]} Be7 {[%emt 0:02:35]} 7. c3 {[%emt 0:02:10]} Nc6 {[%emt 0:00:19]} 8. Nd3 {[%emt 0:00:51] The position is equal.} Nf6 {[%emt 0:01:02]} 9. Bg5 {[%emt 0:00:30]} O-O {[%emt 0:01:30]} 10. Re1 {[%emt 0:01:51]} h6 {[%emt 0:04:46]} 11. Bxf6 {[%emt 0:01:05]} Bxf6 {[%emt 0:00:04]} 12. Nd2 {[%emt 0:02:22]} Bxd3 {[%emt 0:02:53]} 13. exd3 {[%emt 0:00:13]} Ne7 {[%emt 0:03:26]} 14. Nf3 {[%emt 0:02:48]} b6 {[%emt 0:03:11]} 15. Qa4 {[%emt 0:04:08]} c5 {[%emt 0:05:25]} 16. dxc5 {[%emt 0:04:14]} bxc5 {[%emt 0:00:05]} 17. Nd2 {[%emt 0:04:50]} Rb8 {[%emt 0:02:58]} 18. Nb3 {[%emt 0:06:34]} Qc7 {[%emt 0:00:27]} 19. Rab1 {[%emt 0:00:57]} Rfc8 {[%emt 0:06:04]} 20. Rec1 {[%emt 0:05:19]} c4 {[%emt 0:11:48]} 21. dxc4 {[%emt 0:02:13]} Qxc4 {[%emt 0:00:05]} 22. Qxc4 {[%emt 0:05:51]} Rxc4 {[%emt 0:00:05]} 23. Nd2 {[%emt 0:01:42]} Rc7 {[%emt 0:04:20]} 24. h4 {[%emt 0:04:13]} a5 {[%emt 0:06:22]} 25. a4 {[%emt 0:09:47]} g6 {[%emt 0:04:22]} 26. Bf1 {[%emt 0:02:00]} Nf5 {[%emt 0:00:27]} 27. Bd3 {[%emt 0:06:48]} Nd6 {[%emt 0:00:33]} 28. c4 {[%emt 0:01:47]} dxc4 {[%emt 0:22:42] Black has more active pieces.} 29. Nxc4 {[%emt 0:00:21]} Nxc4 {[%emt 0:00:37]} 30. Rxc4 {[%emt 0:02:26]} Rd7 {[%emt 0:00:33]} 31. Be4 {[%emt 0:03:24]} Rxb2 {[%emt 0:05:19]} 32. Rxb2 {[%emt 0:00:14]} Bxb2 $15 {[%emt 0:00:03][%mdl 4096] Endgame. KRB-KRB} 33. Rc2 {[%emt 0:01:14]} Rd1+ {[%emt 0:00:49]} 34. Kg2 {[%emt 0:00:09]} Bd4 {[%emt 0:00:35]} 35. Bf3 {[%emt 0:01:19]} Ra1 {[%emt 0:00:32]} 36. Bc6 {[%emt 0:01:28]} Kg7 {[%emt 0:01:44]} 37. Bb5 {[%emt 0:00:26]} f5 {[%emt 0:02:04]} 38. Re2 {[%emt 0:02:07]} Kf6 {[%emt 0:00:54]} 39. Bd7 {[%emt 0:07:21]} e5 {[%emt 0:00:19]} 40. f3 {[%emt 0:00:57]} Rg1+ {[%emt 0:04:25]} 41. Kh2 {[%emt 0:15:12]} Rc1 {[%emt 0:17:26]} 42. Kg2 {[%emt 0:00:53]} h5 {[%emt 0:00:55]} 43. Be8 {[%emt 0:09:08]} Rc8 {[%emt 0:01:01]} 44. Bd7 {[%emt 0:00:22]} Rc7 {[%emt 0:00:06]} 45. Be8 {[%emt 0:00:14]} g5 {[%emt 0:00:00]} 46. Bxh5 {[%emt 0:00:00]} gxh4 {[%emt 0:00:00]} 47. gxh4 {[%emt 0:00:00]} Rc8 {[%emt 0:00:00] Dodges Be8} 48. f4 {[%emt 0:00:00]} e4 {[%emt 0:00:00]} (48... exf4 $17 {...Rh8 would now be deadly.} 49. Re8 Rc2+ 50. Kh1 Rc3 51. Rf8+ Ke6) 49. Rd2 {[%emt 0:00:00]} Be3 {[%emt 0:00:42]} 50. Rd6+ {[%emt 0:00:00]} Ke7 {[%emt 0:00:04]} 51. Rd5 {[%emt 0:00:00][%csl LRa5,LRf5]} Ke6 {[%emt 0:00:06]} 52. Rxa5 {[%emt 0:00:00]} Rg8+ {[%emt 0:00:57]} 53. Kf1 {[%emt 0:00:00]} (53. Kh3 $1 $11) 53... Rg1+ $17 {[%emt 0:01:27]} ({Reject} 53... Bxf4 $6 54. Bf7+ Kxf7 55. Rxf5+ Ke6 56. Rxf4 $11) 54. Ke2 {[%emt 0:00:00]} Bxf4 {[%emt 0:00:03]} 55. Kf2 {[%emt 0:03:13]} (55. Rb5 $17 {is a better defense.}) 55... Rg7 {[%emt 0:00:46]} (55... Rh1 $19 56. Rb5 Rxh4) 56. Be2 {[%emt 0:01:34] [#]} Bg3+ $1 {[%emt 0:01:45]} 57. Ke3 {[%emt 0:00:06]} Bxh4 {[%emt 0:00:10]} 58. Ra6+ {[%emt 0:00:16]} (58. Bc4+ $17 Kf6 59. Ra6+ Kg5 60. Ra5) 58... Ke5 $19 {[%emt 0:00:25]} 59. Ra5+ {[%emt 0:00:11]} Kf6 {[%emt 0:00:19]} 60. Ra6+ {[%emt 0:00:22]} Kg5 {[%emt 0:00:14]} 61. Re6 {[%emt 0:02:02]} Be1 {[%emt 0:01:36]} 62. Bb5 {[%emt 0:00:07]} Bb4 {[%emt 0:00:53]} (62... Rb7 $19 {and Black stays clearly on top.} 63. Re8 Bb4 64. Rg8+ Kf6) 63. Re5 $2 {[%emt 0:03:18]} (63. Kd4 $17) 63... Rc7 {[%emt 0:00:53]} 64. Rd5 $2 {[%emt 0:00:23]} (64. Re8) 64... Rc3+ {[%emt 0:00:37]} (64... Rc2 $142 {aiming for ...Bc5+.} 65. Kd4 Kf4) 65. Ke2 {[%emt 0:00:05] [#]} (65. Kd4 {only move.}) 65... Rc2+ $1 {[%emt 0:00:33]} 66. Kd1 {[%emt 0:00:22]} Rf2 $2 {[%emt 0:00:39]} (66... Ra2 $19 {has better winning chances. ...Bc3 is the strong threat.} 67. Bd7 e3) 67. Bd7 $2 {[%emt 0:00:47]} (67. Be2 $17) 67... Kf6 {[%emt 0:00:53]} 68. a5 $2 {[%emt 0:00:44]} (68. Be8) 68... e3 {[%emt 0:00:35]} 69. Bb5 {[%emt 0:00:11] Repels e2+} Bxa5 {[%emt 0:00:39]} 70. Be2 {[%emt 0:00:32]} Bc7 {[%emt 0:00:20]} (70... Bb4 $142 71. Rd4 Be7) 71. Rd7 {[%emt 0:01:06]} (71. Rc5 $142 Bd6 72. Rc2) 71... Be5 {[%emt 0:00:10] Threatens to win with ...f4.} 72. Rd8 {[%emt 0:00:09]} f4 {[%emt 0:00:18]} 73. Rf8+ {[%emt 0:00:13]} Ke7 {[%emt 0:00:14] ( -> ...Rxe2)} 74. Rf5 {[%emt 0:00:28]} Ke6 {[%emt 0:00:05]} 75. Rf8 {[%emt 0:00:05]} Bf6 {[%emt 0:01:34]} 76. Bg4+ {[%emt 0:02:05]} Ke7 {[%emt 0:00:29]} 77. Rc8 {[%emt 0:00:20]} Rd2+ {[%emt 0:00:35] Black mates.} 78. Ke1 {[%emt 0:00:16]} Bh4+ {[%emt 0:00:15]} 79. Kf1 {[%emt 0:00:04] [#]} f3 $1 {[%emt 0:01:11][%cal Rd2d1]} 80. Rc7+ {[%emt 0:00:34]} Kf6 {[%emt 0:00:10][%cal Rd2d1]} 81. Rc6+ {[%emt 0:00:09]} Ke5 {[%emt 0:00:42][%cal Rd2d1]} 82. Bxf3 {[%emt 0:00:13]} Rf2+ {[%emt 0:00:02]} 83. Ke1 {[%emt 0:00:08]} Rxf3+ {[%emt 0:00:15]} 84. Ke2 {[%emt 0:00:03]} Rg3 {[%emt 0:00:24] Weighted Error Value: White=0.14 (very precise) /Black=0.08 (flawless) .  Loses game:     	White=2     	---        Missed win:     	---       	Black=1      Mistake:       	White=6     	Black=4      Inaccurate:     	White=1     	Black=1      OK:         	White=17    	Black=18     Best:        	White=7     	Black=10     Strong:       	---       	Black=2} (84... Rh3 $142 85. Kd3 Bg5 86. Rc2 Kf4 87. Rg2 Rh1 88. Re2 Kf3 89. Rc2 Rd1+ 90. Kc4 e2 91. Rxe2 Kxe2 92. Kc5 Bf4 93. Kc6 Rd6+ 94. Kc7 Kd3 95. Kb8 Kc4 96. Kb7 Rd7+ 97. Kc8 Rf7 98. Kd8 Kd5 99. Kc8 Ke6 100. Kd8 Rf8#) 0-1

[Event "CIS Master Groups 2024"]
[Site "Vasto"]
[Date "2024.04.11"]
[Round "5.6"]
[White "Marchesich, Giovanni"]
[Black "Iturrizaga Bonelli, Eduardo"]
[Result "0-1"]
[ECO "B41"]
[WhiteElo "2226"]
[BlackElo "2589"]
[Annotator "TA"]
[PlyCount "62"]
[EventDate "2024.04.07"]
[EventType "team-tourn"]
[EventCountry "ITA"]
[SourceTitle "playchess.com"]
[Source "ChessBase"]
[SourceQuality "1"]
[TimeControl "40/5400+30:900+30"]

{[%evp 11,62,15,27,10,35,33,43,19,24,19,22,-50,-55,-73,-63,-72,-73,-113,-97,-114,-85,-105,-21,-21,-35,-130,-150,-130,-123,-260,-269,-256,-261,-261,-251,-281,-274,-290,-260,-267,-262,-282,-278,-303,-298,-301,-294,-292,-283,-415,-408,-438,-435]} 1. e4 {[%emt 0:00:03]} c5 {[%emt 0:05:59]} 2. Nf3 {[%emt 1:31:27]} e6 {[%emt 0:00:46]} 3. d4 {[%emt 0:00:00]} cxd4 {[%emt 0:00:07]} 4. Nxd4 {[%emt 0:00:00]} a6 {[%emt 0:00:32]} 5. c4 {[%emt 0:00:00]} Nf6 {[%emt 0:00:43][%cal Bg8f6,Bf6e8,Be8d6,Bd6f5,Bf5h4][%mdl 32]} 6. Nc3 {[%emt 0:00:00]} Bb4 {[%emt 0:01:00]} 7. Qd3 {[%emt 0:00:00]} O-O {[%emt 0:01:58]} 8. e5 {[%emt 0:00:00]} Ne8 {[%emt 0:00:15]} 9. Be2 {[%emt 0:00:00] White is slightly better.} Qc7 {[%emt 0:03:13]} 10. Nc2 {[%emt 0:00:00]} Nc6 {[%emt 0:08:32]} 11. f4 {[%emt 0:00:00]} (11. Nxb4 $11 Nxb4 12. Qd1) 11... Be7 $15 {[%emt 0:01:07]} 12. O-O {[%emt 0:00:00]} d6 {[%emt 0:00:07]} 13. exd6 {[%emt 0:00:00]} Nxd6 {[%emt 0:00:08][%cal Ob7b5]} 14. b3 {[%emt 0:00:00]} Rd8 {[%emt 0:07:14][%cal Ob7b5]} 15. Bb2 {[%emt 0:00:00]} Nf5 {[%emt 0:03:54]} 16. Qh3 {[%emt 0:00:00]} Rd2 {[%emt 0:09:29]} ({Black should play} 16... b5 $1 $17 {...Rd2 is the strong threat.} 17. Kh1 bxc4 18. Bxc4 Bf6) 17. Bd3 $11 {[%emt 0:00:00]} Nh4 {[%emt 0:00:04]} 18. Ne2 {[%emt 0:00:00]} (18. Be4 $15) 18... Qb6+ {[%emt 0:07:38]} 19. Kh1 {[%emt 0:00:00] [#] And now Bc3 would win.} e5 $1 $36 {[%emt 0:00:03][%mdl 2048] White is under strong pressure. Really sharp! Black is more active.} 20. Qg3 {[%emt 0:00:00] This costs White the game.} (20. f5 $17 Qd8 21. Nc1) 20... Bf5 $19 {[%emt 0:00:24]} 21. Rad1 {[%emt 0:00:00] [#]} Rxe2 {[%emt 0:06:18][%mdl 512]} 22. Bxe2 {[%emt 0:00:00]} Bxc2 {[%emt 0:00:05]} 23. Rd2 {[%emt 0:00:00]} Be4 {[%emt 0:00:23]} 24. Bf3 {[%emt 0:00:00]} Nxf3 {[%emt 0:16:15]} 25. gxf3 {[%emt 0:00:00]} Bf5 {[%emt 0:00:03]} 26. Rg1 {[%emt 0:00:00]} g6 {[%emt 0:00:16]} 27. fxe5 {[%emt 0:00:00]} Qe3 {[%emt 0:03:27]} 28. Rgd1 {[%emt 0:00:00]} Re8 {[%emt 0:00:34]} 29. Qf2 {[%emt 0:00:00]} Qf4 {[%emt 0:01:05]} 30. a3 {[%emt 0:00:00]} (30. Re2 $142) 30... Nxe5 {[%emt 0:02:37]} 31. Re2 {[%emt 0:00:00]} Nd3 {[%emt 0:00:41] Weighted Error Value: White=0.26 (precise) /Black=0.08 (flawless) .  Mistake:       	White=4     	Black=1      Inaccurate:     	White=1     	---        OK:         	White=4     	Black=11     Best:        	White=3     	Black=3      Strong:       	---       	Black=1      Brilliant:      	---       	Black=1} (31... Nxf3 $2 {perishes.} 32. Rxe7 Rf8 33. Rf1 $18 (33. Rxb7 $2 {is the wrong capture.} Be4 $19) (33. Qg3 Qxg3 34. hxg3 Ng5 $18)) (31... Qxf3+ $2 32. Qxf3 Nxf3 33. Rxe7 $18) 0-1

[Event "CIS Master Groups 2024"]
[Site "Vasto"]
[Date "2024.04.11"]
[Round "5.8"]
[White "Sorbera, Giovanni"]
[Black "Varriale, Luca"]
[Result "0-1"]
[ECO "B20"]
[WhiteElo "2148"]
[BlackElo "2165"]
[Annotator "TA"]
[PlyCount "152"]
[EventDate "2024.04.07"]
[EventType "team-tourn"]
[EventCountry "ITA"]
[SourceTitle "playchess.com"]
[Source "ChessBase"]
[SourceQuality "1"]
[TimeControl "40/5400+30:900+30"]

{[%evp 65,151,-36,-24,-45,23,0,0,0,0,0,0,0,0,0,0,-125,-125,-290,-238,-254,-243,-245,-214,-250,-248,-534,-239,-252,-248,-231,-103,-108,-102,-165,-165,-165,-165,-160,-160,-159,-110,-583,-306,-218,0,0,0,-5142,-5142,-4839,-4624,-2927,-2333,-4341,0,-1513,0,-1487,-1645,-5157,-4839,-4781,-906,-906,-885,-830,-830,-4341,-4460,-4258,-3697,-2468,-822,-785,-784,-941,-791,-806,0,-29977,-29978,-29979,-29980,-29991,-29992,-29994,-29995,-29999]} 1. e4 {[%emt 0:00:38]} c5 {[%emt 0:00:14]} 2. b4 {[%emt 0:00:14]} cxb4 {[%emt 0:00:27]} 3. a3 {[%emt 0:00:07]} d5 {[%emt 0:00:34]} 4. exd5 {[%emt 0:00:08]} Qxd5 {[%emt 0:00:06]} 5. Nf3 {[%emt 0:00:05]} e5 {[%emt 0:00:46]} 6. c4 {[%emt 0:02:44] B20: Sicilian: Unusual White 2nd moves.} Qe6 {[%emt 0:02:28]} 7. Bd3 {[%emt 0:00:21]} Nc6 {[%emt 0:06:45]} 8. O-O {[%emt 0:00:13]} Nf6 {[%emt 0:04:14]} 9. Re1 {[%emt 0:00:11]} Bd6 {[%emt 0:03:18]} 10. axb4 {[%emt 0:01:09]} Nxb4 {[%emt 0:03:07]} 11. Bf1 {[%emt 0:02:02]} O-O {[%emt 0:08:01]} 12. Nc3 {[%emt 0:07:56]} e4 {[%emt 0:29:13]} 13. Nb5 {[%emt 0:07:50]} Qd7 {[%emt 0:11:40]} 14. Ng5 {[%emt 0:05:04]} Bc5 $146 {[%emt 0:04:04]} ({Predecessor:} 14... Re8 15. d3 Nxd3 16. Nxd6 Qxd6 17. g3 Bg4 18. Qd2 Rad8 19. Bxd3 Qxd3 20. Qb4 h6 {0-1 Michalek,M (1973)-Eife,G (1580) GER-Cup24 E/V02 email 2014}) 15. Nxe4 {[%emt 0:03:25]} Nxe4 {[%emt 0:01:01]} 16. Rxe4 {[%emt 0:00:09]} Nd3 {[%emt 0:08:33]} 17. Bxd3 {[%emt 0:27:47]} Qxd3 {[%emt 0:00:02]} 18. Qf3 {[%emt 0:02:33]} Qxf3 {[%emt 0:00:23]} 19. gxf3 {[%emt 0:00:05]} Bd7 {[%emt 0:03:27]} 20. d4 {[%emt 0:02:17]} Bxb5 {[%emt 0:05:36]} 21. cxb5 {[%emt 0:00:05]} f5 {[%emt 0:00:39]} 22. dxc5 {[%emt 0:03:40]} fxe4 {[%emt 0:00:01]} 23. fxe4 {[%emt 0:00:08]} a6 {[%emt 0:03:23]} 24. b6 {[%emt 0:00:12]} Rae8 {[%emt 0:03:10]} 25. Ra4 {[%emt 0:00:25]} Rf6 {[%emt 0:00:46]} 26. Kf1 {[%emt 0:02:55]} Rc6 {[%emt 0:00:40]} 27. Be3 {[%emt 0:00:08]} Kf7 {[%emt 0:00:46]} 28. Ke2 {[%emt 0:01:20]} Re5 {[%emt 0:00:26]} 29. Kd3 {[%emt 0:05:05]} g5 {[%emt 0:00:33]} 30. Bd4 {[%emt 0:01:48]} Re8 {[%emt 0:00:15]} 31. Ra1 {[%emt 0:03:12]} Rd8 {[%emt 0:00:08]} 32. Ke3 {[%emt 0:01:19]} Rh6 {[%emt 0:00:43]} 33. Rg1 {[%emt 0:01:45]} Rg8 {[%emt 0:00:33]} 34. Be5 {[%emt 0:01:08]} Re6 {[%emt 0:00:50]} (34... Ke6 $15 35. Kd4 Rh3) 35. Bc7 {[%emt 0:01:02]} Ke7 {[%emt 0:00:35]} 36. Kd4 {[%emt 0:00:37]} Kd7 {[%emt 0:00:26]} 37. f4 {[%emt 0:00:14]} Rge8 {[%emt 0:00:21]} 38. Rxg5 {[%emt 0:02:30]} Rxe4+ {[%emt 0:00:02]} 39. Kd5 {[%emt 0:00:14]} Re2 {[%emt 0:00:39]} 40. Be5 {[%emt 0:02:21]} (40. Rg7+ $1 $11 Kc8 (40... R8e7 41. Rxe7+ Rxe7 42. Be5 $11) 41. Bd6 Rd2+ (41... Rxh2 42. Rc7+ Kd8 43. Rxb7 Rh5+ 44. Kc6) 42. Kc4 Re4+ 43. Kc3) 40... Rd2+ $17 {[%emt 0:00:47]} (40... Rxh2 41. Rg7+ Re7 42. Rxe7+ Kxe7 43. c6 bxc6+ (43... Rd2+ $2 44. Ke4 $18) 44. Ke4 Re2+ 45. Kf5 $18) 41. Bd4 $2 {[%emt 0:16:10]} (41. Kc4 $17 Kc6 (41... Rxh2 42. Rg7+ Ke6 43. Rxb7 $16) 42. Rh5 Rc2+ 43. Kd3 Rxc5 44. Rh6+ Kd7 (44... Kb5 45. Rxh7 Rc1 46. Rxb7 $17) 45. Rxh7+ Re7 46. Rh8) 41... Kc8 {[%emt 0:10:03]} (41... Rxh2 42. Rg7+ Re7 43. Rg8 $11 (43. Rxe7+ Kxe7 44. c6 bxc6+ 45. Kxc6 Rh6+ 46. Kc7 Rg6 $11)) 42. Kc4 {[%emt 0:00:00]} Re4 $1 {[%emt 0:00:44]} (42... Rxh2 43. Rg7 Rc2+ 44. Kb3 $11) 43. Rg8+ {[%emt 0:00:00]} Kd7 {[%emt 0:00:05]} 44. Rg7+ {[%emt 0:00:00]} Ke6 {[%emt 0:00:54]} 45. f5+ {[%emt 0:00:00]} Kxf5 {[%emt 0:00:19]} 46. Rd7 {[%emt 0:00:00]} Ke6 $1 {[%emt 0:00:41]} (46... Rxh2 $2 47. Rxb7 Rd2 48. Rd7 Rc2+ 49. Kd5 Rxd4+ 50. Kxd4 Rd2+ 51. Kc4 Rxd7 52. c6 $18) 47. c6 {[%emt 0:00:04] [#]} Rexd4+ {[%emt 0:05:01]} (47... Rxh2 $2 48. cxb7 (48. Rxb7 Rg4 $16) 48... Kxd7 49. b8=Q $18 (49. b8=B $2 Rhh4 $19)) (47... bxc6 48. b7) (47... Rc2+ $1 $19 {[%mdl 512] and Black stays clearly on top.} 48. Kd3 Rxc6 49. Rxb7 Rh4) 48. Rxd4 $17 {[%emt 0:00:33]} Rc2+ {[%emt 0:00:02]} (48... Rxh2 49. cxb7 Rc2+ 50. Kb3 Rf2 51. b8=Q (51. b8=R Rf1 $18) 51... Rf5 52. b7 Rf3+ 53. Kc4) 49. Kb4 {[%emt 0:04:34]} (49. Kd3 $17 {keeps fighting.} Rxc6 (49... Rxh2 50. c7 Ke5 51. c8=Q) 50. Rh4) 49... Rxc6 $19 {[%emt 0:00:21]} 50. Rh4 {[%emt 0:00:06]} Rxb6+ {[%emt 0:00:17]} 51. Ka4 {[%emt 0:00:10]} Rb1 {[%emt 0:01:15]} 52. Rxh7 {[%emt 0:00:53] [#]} Kd5 {[%emt 0:01:30]} (52... b6 $142 $1 {Threatens to win with ...Kd5.} 53. Rh6+ Kd5) 53. Rc7 $2 {[%emt 0:01:29][%mdl 8192]} (53. Ka5 $17 {was the crucial defense.}) 53... Kd6 {[%emt 0:00:24]} 54. Rc2 {[%emt 0:00:37]} b5+ $2 {[%emt 0:00:35]} (54... Ra1+ $19 55. Kb4 Rb1+ 56. Ka3 Rb5) 55. Ka5 $11 {[%emt 0:04:13]} Ra1+ {[%emt 0:00:02]} 56. Kb4 $2 {[%emt 0:01:43][%mdl 8192]} (56. Kb6 $11) 56... Ra4+ $19 {[%emt 0:00:08]} 57. Kb3 {[%emt 0:00:08]} a5 {[%emt 0:00:34]} 58. Rg2 {[%emt 0:03:00]} Rb4+ {[%emt 0:01:53]} 59. Ka3 {[%emt 0:00:24]} Ra4+ {[%emt 0:00:00]} (59... Rh4 $142 60. Rg5 Kc6 (60... Rxh2 61. Rxb5 Rh1 62. Ka2 $11)) 60. Kb3 $19 {[%emt 0:00:08]} Rb4+ {[%emt 0:00:00]} 61. Ka3 {[%emt 0:00:08]} Re4 {[%emt 0:00:00]} 62. h4 {[%emt 0:00:39]} Rxh4 {[%emt 0:01:16]} 63. Rg5 {[%emt 0:02:35]} Rh3+ {[%emt 0:00:08]} (63... Kc6 $142 64. Rg3 Kd5) 64. Kb2 $19 {[%emt 0:00:36] [#]} Rh2+ $1 {[%emt 0:00:29]} 65. Ka3 {[%emt 0:02:14]} b4+ {[%emt 0:00:42]} 66. Ka4 {[%emt 0:00:48]} Ra2+ {[%emt 0:00:10]} 67. Kb3 {[%emt 0:00:51]} Ra3+ {[%emt 0:00:05]} 68. Kc4 {[%emt 0:00:40]} Ra1 {[%emt 0:00:45]} (68... b3 $142 69. Kc3 a4) 69. Rh5 {[%emt 0:00:31]} Rc1+ {[%emt 0:01:04]} 70. Kb5 {[%emt 0:00:35]} b3 {[%emt 0:00:31]} 71. Rh2 {[%emt 0:00:35]} Rc2 $2 {[%emt 0:00:37]} (71... Ra1 $19 {( -> ...a4)} 72. Kc4 a4) 72. Rh3 $2 {[%emt 0:01:18][%mdl 8192]} (72. Rh6+ $11 Kd5 73. Ka4) 72... b2 {[%emt 0:00:16]} 73. Rb3 {[%emt 0:00:31]} Kd5 {[%emt 0:00:33]} 74. Ka4 {[%emt 0:00:26]} Kc4 {[%emt 0:00:28]} 75. Rb8 {[%emt 0:00:22]} b1=Q {[%emt 0:00:47]} 76. Rxb1 {[%emt 0:00:09]} Ra2# {[%emt 0:01:09]} 0-1

[Event "CIS Master Groups 2024"]
[Site "Vasto"]
[Date "2024.04.11"]
[Round "5.9"]
[White "Mastrovasilis, Dimitrios"]
[Black "Lazic, Miroljub"]
[Result "1/2-1/2"]
[ECO "C45"]
[WhiteElo "2576"]
[BlackElo "2311"]
[Annotator "TA"]
[PlyCount "96"]
[EventDate "2024.04.07"]
[EventType "team-tourn"]
[EventCountry "ITA"]
[SourceTitle "playchess.com"]
[Source "ChessBase"]
[SourceQuality "1"]
[TimeControl "40/5400+30:900+30"]

{[%evp 12,96,79,71,80,72,62,54,76,58,68,48,70,64,76,50,57,33,38,28,51,0,0,0,47,19,23,21,23,12,25,0,24,8,33,33,33,17,20,0,0,0,0,0,0,0,0,0,0,0,0,0,0,0,0,0,0,0,0,0,0,0,0,0,0,0,0,0,0,0,0,0,0,0,0,0,0,0,0,0,0,0,0,0,0,0,1407]} 1. e4 {[%emt 0:00:12]} e5 {[%emt 0:00:02]} 2. Nf3 {[%emt 0:00:14]} Nc6 {[%emt 0:00:04]} 3. d4 {[%emt 0:00:33]} exd4 {[%emt 0:00:18]} 4. Nxd4 {[%emt 0:00:10]} Nge7 {[%emt 0:00:39]} 5. Nc3 {[%emt 0:00:38]} Nxd4 {[%emt 0:00:43]} 6. Qxd4 {[%emt 0:00:12]} Nc6 {[%emt 0:00:03]} 7. Qe3 {[%emt 0:00:44] White is more active.} Bb4 {[%emt 0:14:47]} 8. Bd2 {[%emt 0:09:48]} d6 {[%emt 0:01:46]} 9. O-O-O {[%emt 0:02:46]} O-O {[%emt 0:05:22] White is slightly better.} 10. h4 {[%emt 0:04:36][%cal Bh2h4,Bh4h5][%mdl 32]} f5 {[%emt 0:02:01]} 11. h5 {[%emt 0:15:48] [#] Hoping for Bc4+.} f4 {[%emt 0:05:24]} 12. Qe1 {[%emt 0:01:57]} Be6 {[%emt 0:02:48]} 13. f3 {[%emt 0:17:10]} Qg5 {[%emt 0:10:55]} 14. a3 {[%emt 0:01:33]} Ba5 {[%emt 0:01:28]} 15. Kb1 {[%emt 0:02:25]} Rf7 {[%emt 0:06:57]} 16. Ne2 {[%emt 0:14:15]} ({White should try} 16. Bc1 $14) 16... Bxd2 $1 $11 {[%emt 0:00:59]} 17. Qxd2 {[%emt 0:00:14][%cal Og2g3] [#] And now g3! would win.} Bc4 {[%emt 0:04:03]} (17... h6 $11 {is more appropriate.}) 18. Nc3 {[%emt 0:10:05]} Bxf1 {[%emt 0:01:44]} 19. Rdxf1 {[%emt 0:00:02][%cal Oh5h6,Bd1f1,Bf1f2,Bf2d2][%mdl 32]} h6 {[%emt 0:06:19]} 20. Rf2 {[%emt 0:01:01]} Raf8 {[%emt 0:01:42]} 21. Nd5 {[%emt 0:00:44]} Qd8 {[%emt 0:02:10]} 22. Qc3 {[%emt 0:01:14]} Kh7 {[%emt 0:03:56]} 23. Rd2 {[%emt 0:00:27]} Ne5 {[%emt 0:04:31]} 24. b3 {[%emt 0:02:57]} Rd7 {[%emt 0:05:13] The position is equal.} 25. g3 {[%emt 0:04:37]} fxg3 {[%emt 0:01:20]} 26. f4 {[%emt 0:00:02]} c6 {[%emt 0:02:22]} 27. fxe5 {[%emt 0:01:09]} dxe5 {[%emt 0:02:54]} 28. Qxg3 {[%emt 0:03:29]} cxd5 {[%emt 0:00:17]} 29. Qxe5 {[%emt 0:00:30]} dxe4 {[%emt 0:00:18]} 30. Qxe4+ {[%emt 0:02:09]} Kh8 {[%emt 0:00:01]} 31. Rxd7 {[%emt 0:01:26]} Qxd7 {[%emt 0:00:26][%mdl 4096] Endgame. KQR-KQR} 32. Re1 {[%emt 0:00:33]} Rf5 {[%emt 0:02:24]} 33. Qg4 {[%emt 0:01:35]} Rd5 {[%emt 0:06:59]} 34. Qg6 {[%emt 0:01:14] Threatening mate with Re8+.} Rd1+ {[%emt 0:00:09]} 35. Rxd1 {[%emt 0:00:06]} Qxd1+ {[%emt 0:00:03] KQ-KQ} 36. Ka2 {[%emt 0:00:29]} Qd7 {[%emt 0:00:50]} 37. a4 {[%emt 0:00:41]} Kg8 {[%emt 0:00:14]} 38. Qe4 {[%emt 0:00:58]} Qc6 {[%emt 0:00:25]} 39. Qf5 {[%emt 0:00:22]} b6 {[%emt 0:02:29]} 40. Kb1 {[%emt 0:00:39]} Qc5 {[%emt 0:01:40]} 41. Qe6+ {[%emt 0:15:41]} Kf8 {[%emt 0:15:37]} 42. Qg4 {[%emt 0:00:00]} a5 {[%emt 0:00:00]} 43. Qg6 {[%emt 0:00:00]} Qd4 {[%emt 0:00:00]} 44. Ka2 {[%emt 0:00:00]} Ke7 {[%emt 0:00:00]} 45. Qg3 {[%emt 0:00:00]} Kf6 {[%emt 0:00:00]} 46. Qg6+ {[%emt 0:00:00]} Ke7 {[%emt 0:00:00]} 47. Qg3 {[%emt 0:00:00]} Kf6 {[%emt 0:00:00]} 48. Qg6+ {[%emt 0:04:05]} Ke5 $2 {[%emt 0:07:08][%mdl 40960] Weighted Error Value: White=0.07 (flawless) /Black=0.06 (flawless) .  Loses game:     	---       	Black=1      Mistake:       	White=1     	Black=1      Inaccurate:     	White=2     	---        OK:         	White=10    	Black=21     Best:        	White=1     	Black=3      Strong:       	---       	Black=1     . An unexpected result.} (48... Ke7 $11) 1/2-1/2